bitfinex/quotes_ETHUSD_20241225
["timestamp","ask_amount","ask_price","bid_price","bid_amount"]
[1735094170991,0.8309,3468.4,3467.6,0.72033437]
[1735094171512,0.8309,3468.4,3467.6,9.57033437]
[1735094171938,2.8832,3468.4,3467.6,8.85]
[1735094172072,0.8309,3468.3,3467.6,8.85]
[1735094174527,0.8309,3468.3,3467.5,3.52340201]
[1735094174814,0.8309,3468.3,3467.7,2.88369]
[1735094175017,0.8309,3468.3,3467.6,1.88236431]
[1735094175213,0.8309,3468.3,3467.4,8.85]
[1735094177118,0.8309,3468.3,3467.4,11.73397]
[1735094177436,0.8309,3468.3,3467.4,2.88397]
[1735094177656,0.8309,3468.3,3467.5,2.88391]
[1735094177945,0.8309,3468.3,3467.5,7.52157232]
[1735094178445,0.8309,3468.3,3467.5,4.63766232]
[1735094178595,0.8309,3468.3,3467.7,2.88372]
[1735094178801,0.8309,3468.3,3467.8,0.0288337]
[1735094179217,0.8309,3468.3,3467.8,0.43333863]
[1735094179693,0.8309,3468.3,3467.8,0.40450493]
[1735094179898,0.8309,3468.3,3467.7,2.88368]
[1735094180122,1.20239772,3469.0,3467.6,3.55]
[1735094180323,0.8309,3468.9,3467.9,2.88353]
[1735094180678,0.8309,3468.9,3468.2,2.8833]
[1735094181079,0.8309,3468.9,3468.2,2.75530201]
[1735094181291,0.8309,3468.9,3468.4,2.88312]
[1735094181721,0.8309,3468.9,3468.5,2.88302]
[1735094181922,1.20239772,3469.2,3468.7,0.55]
[1735094182238,0.8009,3469.5,3469.0,5.63791201]
[1735094182574,0.8009,3469.5,3468.7,12.15530201]
[1735094182802,0.8009,3469.5,3468.8,4.4647282]
[1735094183005,0.8009,3469.5,3468.8,1.5819182]
[1735094183250,0.8009,3469.5,3469.0,2.8826]
[1735094184259,0.8009,3469.5,3469.1,0.02882244]
[1735094184408,0.8009,3469.5,3469.1,2.88255]
[1735094184609,0.8009,3470.3,3469.4,2.88234]
[1735094186119,0.8009,3470.3,3469.5,0.02881949]
[1735094186342,0.8009,3470.3,3469.5,2.88224]
[1735094187652,0.8009,3470.3,3469.3,15.06347531]
[1735094187843,0.8009,3470.3,3469.3,9.4257733]
[1735094188726,2.88176,3470.1,3469.3,9.4257733]
[1735094188934,0.8009,3470.0,3469.3,9.4257733]
[1735094189457,0.8009,3470.0,3469.3,0.5757733]
[1735094189661,0.8009,3470.0,3469.4,0.65339659]
[1735094190018,0.8009,3470.0,3469.4,1.43419659]
[1735094190731,0.8009,3470.0,3469.4,0.65339659]
[1735094190975,0.8009,3470.0,3469.3,0.5757733]
[1735094191673,0.8009,3470.0,3469.3,3.4581133]
[1735094191830,0.8009,3470.0,3469.5,2.88224]
[1735094193781,0.8009,3470.0,3469.6,2.88217]
[1735094195186,3.68201,3470.9,3469.8,2.88198]
[1735094195384,1.20239772,3471.1,3470.0,8.85]
[1735094195385,0.8009,3470.8,3470.0,8.85]
[1735094195695,0.8009,3470.8,3470.4,2.8815]
[1735094195990,0.8009,3470.8,3470.3,0.7928]
[1735094196187,0.8009,3470.8,3470.4,2.9103113]
[1735094196349,0.8009,3470.8,3470.3,0.7928]
[1735094196549,0.8009,3470.8,3470.2,5.63695201]
[1735094196754,0.8009,3470.8,3470.2,1.8711612]
[1735094197074,0.8009,3470.8,3470.3,2.88156]
[1735094198014,0.7905,3471.6,3470.4,8.85]
[1735094198315,0.7905,3471.6,3470.4,11.73144]
[1735094198813,0.7905,3471.6,3470.6,3.67408]
[1735094199021,0.7905,3471.6,3470.6,4.98436894]
[1735094199391,0.7905,3471.6,3470.8,2.88117]
[1735094202038,0.7905,3471.6,3470.7,8.85]
[1735094202210,4.032939,3472.4,3470.7,8.85]
[1735094202211,0.7905,3471.3,3470.7,8.85]
[1735094203946,0.7905,3471.3,3470.7,11.73124]
[1735094204244,0.7905,3471.3,3470.8,1.173124]
[1735094204630,0.7905,3471.3,3470.8,10.023124]
[1735094205029,0.7905,3471.3,3470.9,0.02880744]
[1735094205232,0.7905,3471.3,3470.9,0.02880726]
[1735094205433,0.7905,3471.3,3470.8,10.023124]
[1735094205618,0.7905,3471.3,3470.9,1.2904364]
[1735094206244,0.7905,3471.3,3470.9,1.31924374]
[1735094206558,0.7905,3471.3,3470.9,1.2904364]
[1735094206704,0.7905,3471.3,3470.6,0.55]
[1735094207443,0.7905,3471.3,3470.4,8.85]
[1735094208557,2.8808,3471.3,3470.3,3.0]
[1735094208746,0.7905,3471.2,3470.3,3.0]
[1735094210037,3.67135,3471.2,3470.3,3.0]
[1735094210240,3.67135,3471.2,3470.3,5.07168121]
[1735094210534,0.7905,3471.2,3470.3,7.98208207]
[1735094210716,0.7905,3471.2,3470.3,7.95327121]
[1735094211762,0.7905,3471.2,3470.3,5.07168121]
[1735094211973,2.88048,3471.7,3470.2,0.56573885]
[1735094211974,5.63578201,3471.7,3470.2,0.56573885]
[1735094212120,0.8035,3471.6,3470.2,3.56573885]
[1735094212323,0.8035,3470.7,3470.2,0.56573885]
[1735094213786,0.8035,3470.7,3469.6,3.0]
[1735094213787,0.8035,3470.7,3469.8,0.55]
[1735094213961,0.8035,3470.7,3469.9,3.355]
[1735094214580,0.8035,3470.7,3469.9,0.355]
[1735094215688,0.8035,3470.6,3469.6,5.88215]
[1735094215862,0.8035,3470.5,3469.9,0.57649986]
[1735094216193,2.88105,3471.0,3469.3,3.50030688]
[1735094216194,0.8035,3470.4,3469.3,3.50030688]
[1735094216488,0.8035,3470.4,3469.4,0.58613319]
[1735094217690,0.8035,3470.4,3469.4,3.58613319]
[1735094217996,0.7528,3470.2,3469.4,3.58613319]
[1735094218153,0.7528,3470.2,3469.4,4.5830242]
[1735094218354,0.7528,3470.1,3469.4,3.0]
[1735094220652,0.7528,3470.1,3469.9,2.8819]
[1735094220852,1.20239772,3471.4,3469.8,2.88201]
[1735094221048,0.7528,3471.3,3470.4,2.88144]
[1735094221562,1.95519772,3471.3,3470.4,2.88144]
[1735094221746,1.95519772,3471.3,3470.5,1.16649671]
[1735094223066,0.7528,3471.3,3470.5,1.16649671]
[1735094226690,2.88077,3471.3,3470.5,1.16649671]
[1735094226897,0.8097,3471.2,3470.3,9.44056537]
[1735094228602,0.8097,3471.2,3470.3,3.59056537]
[1735094230605,0.8097,3471.2,3470.4,0.02881206]
[1735094230769,0.8097,3471.2,3470.4,2.91029206]
[1735094230979,0.8097,3471.5,3471.0,2.75530201]
[1735094231181,1.20239772,3471.7,3471.3,2.75530201]
[1735094231362,1.20239772,3471.7,3471.4,2.90940393]
[1735094231560,1.20239772,3471.6,3471.4,2.8806]
[1735094233606,0.8097,3472.0,3471.4,2.8806]
[1735094233896,0.8097,3472.0,3471.5,0.5635902]
[1735094234103,0.8097,3472.6,3471.5,4.3573902]
[1735094234310,0.8097,3472.6,3471.7,3.0]
[1735094234506,0.8097,3472.6,3471.8,0.02879927]
[1735094234671,0.8097,3472.6,3471.9,2.75530201]
[1735094234865,1.20239772,3472.7,3472.0,1.37221013]
[1735094235059,1.20239772,3472.7,3472.0,10.22221013]
[1735094235474,1.20239772,3472.7,3472.2,2.88]
[1735094235822,1.20239772,3472.7,3472.4,2.87984]
[1735094236403,0.8097,3473.2,3472.4,2.87984]
[1735094236604,0.8097,3473.2,3472.4,4.6283542]
[1735094238631,0.8097,3473.2,3472.5,0.02879464]
[1735094238810,0.8097,3473.2,3472.4,4.6283542]
[1735094239335,0.8097,3473.2,3472.3,11.85]
[1735094240334,0.8097,3473.2,3472.5,5.75530201]
[1735094240536,1.2025364,3473.7,3472.6,9.63209241]
[1735094240707,0.7561,3473.6,3472.6,9.6033]
[1735094240908,0.7561,3473.6,3472.7,0.02879122]
[1735094241232,0.7561,3473.6,3473.0,3.0]
[1735094242235,0.7561,3473.6,3472.9,8.85]
[1735094242808,3.63498,3473.6,3472.9,8.85]
[1735094243107,2.87894,3473.5,3472.9,8.85]
[1735094243719,0.7561,3473.6,3472.9,8.85]
[1735094243926,0.7561,3473.6,3472.9,9.735]
[1735094244890,0.8212,3473.0,3472.3,2.87993]
[1735094245093,0.8212,3473.0,3472.4,3.0]
[1735094246237,0.8212,3473.0,3472.5,3.0]
[1735094246552,2.87888,3473.6,3472.6,3.0]
[1735094246553,0.8212,3473.2,3472.6,3.0]
[1735094247062,0.8212,3473.8,3472.6,2.87966]
[1735094247947,0.8212,3473.5,3472.5,3.0]
[1735094248234,2.87902,3473.4,3472.5,3.0]
[1735094248635,0.8212,3473.5,3472.5,3.0]
[1735094248846,3.70014,3473.5,3472.5,3.0]
[1735094249419,0.8212,3473.5,3472.6,0.0287932]
[1735094249654,0.8212,3473.5,3472.7,1.18787932]
[1735094250928,0.8212,3473.5,3473.1,2.87925]
[1735094251266,0.8212,3473.5,3472.8,8.85]
[1735094251439,0.8212,3474.3,3473.3,2.87909]
[1735094251835,3.69947,3474.3,3473.3,2.87909]
[1735094252059,3.69947,3474.3,3473.4,0.287909]
[1735094252553,0.8212,3474.3,3473.4,0.287909]
[1735094253527,0.8212,3474.3,3473.5,2.87892]
[1735094254674,0.8212,3474.3,3473.4,0.287909]
[1735094254858,0.8212,3474.3,3473.6,2.87885]
[1735094255053,0.8212,3474.3,3473.6,0.45728061]
[1735094255281,0.8212,3474.3,3473.5,3.69382]
[1735094255577,0.8212,3474.3,3473.6,0.02878416]
[1735094255781,0.8212,3474.3,3473.5,9.69368416]
[1735094255969,0.8212,3474.3,3473.8,2.87865]
[1735094256166,0.8183,3474.6,3473.8,2.75530201]
[1735094256366,0.8183,3474.6,3474.2,2.87835]
[1735094256575,0.8183,3475.2,3474.2,2.87835]
[1735094257188,3.69584,3475.2,3474.2,2.87835]
[1735094257403,0.8183,3475.2,3474.2,2.87835]
[1735094257605,0.8183,3475.2,3474.5,3.0]
[1735094258041,0.8183,3475.2,3474.2,3.0]
[1735094258244,0.8183,3475.2,3474.3,1.5404302]
[1735094259306,0.8183,3475.2,3474.2,3.58799292]
[1735094259610,0.8183,3475.0,3474.2,0.58799292]
[1735094260767,0.8183,3475.0,3474.3,2.90703934]
[1735094260945,0.8183,3475.0,3474.4,3.0]
[1735094261144,0.8183,3475.0,3474.5,0.02877765]
[1735094261363,0.8183,3475.0,3474.5,0.67828071]
[1735094261609,0.8183,3475.0,3474.5,3.52758306]
[1735094261991,0.8183,3475.5,3474.6,0.02877681]
[1735094262574,0.8183,3475.5,3474.5,3.52758306]
[1735094263152,0.8183,3475.5,3474.6,2.87802]
[1735094263358,0.8183,3475.5,3474.7,1.32052997]
[1735094263806,0.8183,3475.5,3474.7,4.19838997]
[1735094265675,0.8183,3475.5,3474.7,1.32052997]
[1735094266209,0.8183,3475.5,3474.7,4.19846997]
[1735094266753,0.8183,3475.5,3474.8,2.87786]
[1735094266972,0.8183,3475.5,3474.8,4.25052673]
[1735094267193,0.8183,3475.5,3474.8,1.94862247]
[1735094267354,0.8183,3475.5,3475.0,3.67663]
[1735094268376,0.8183,3476.1,3475.0,3.67663]
[1735094268579,0.8183,3476.1,3475.1,3.74005525]
[1735094268791,0.8183,3476.1,3475.2,3.0]
[1735094269592,0.8183,3476.1,3475.3,3.0]
[1735094271032,3.69508,3476.1,3475.1,6.74013525]
[1735094271470,0.8183,3476.1,3475.1,6.74013525]
[1735094271683,0.8183,3476.1,3475.4,0.57543717]
[1735094272187,0.8183,3476.1,3475.4,0.6042063]
[1735094272347,0.8183,3476.1,3475.4,3.4815563]
[1735094272523,0.8183,3476.1,3475.4,0.57543717]
[1735094273398,0.8183,3476.1,3475.5,3.69207]
[1735094273709,0.8183,3476.1,3475.6,1.00515772]
[1735094276209,0.7975,3475.9,3475.1,0.86252525]
[1735094276413,0.7975,3475.9,3475.1,3.74010525]
[1735094276544,0.9700533,3476.2,3475.4,3.8148]
[1735094276856,0.9700533,3476.2,3475.4,12.6648]
[1735094277058,0.9700533,3476.2,3475.5,1.5420102]
[1735094277872,0.9700533,3476.2,3475.6,3.0]
[1735094279867,0.1725533,3476.2,3476.0,3.8148]
[1735094280068,0.1725533,3476.2,3476.1,14.72678]
[1735094280269,0.1725533,3476.2,3476.1,17.14704143]
[1735094281173,0.01,3477.4,3477.0,3.0]
[1735094281365,0.01,3477.4,3477.0,2.87603]
[1735094281562,0.01,3477.4,3477.0,0.02875547]
[1735094281884,0.01,3477.4,3476.9,11.85]
[1735094282091,0.7975,3477.3,3477.0,2.13890448]
[1735094282290,0.01,3477.4,3477.0,2.13890448]
[1735094282459,0.01,3477.4,3477.0,5.01491448]
[1735094282663,0.01,3477.4,3477.0,2.13890448]
[1735094282892,0.01,3477.4,3477.0,1.554093]
[1735094283089,0.01,3477.4,3476.9,11.85]
[1735094283453,0.01,3477.4,3476.9,12.6648]
[1735094283654,0.01,3477.4,3476.9,13.24604028]
[1735094283891,0.01,3477.4,3477.1,2.87595]
[1735094284093,0.01,3477.4,3477.3,2.87579]
[1735094284257,0.01,3477.4,3477.3,16.72004852]
[1735094284477,0.01,3477.4,3477.3,16.6912972]
[1735094286118,0.01,3477.4,3477.3,15.8764972]
[1735094288091,0.01,3477.4,3477.3,16.7014972]
[1735094290446,0.01,3477.4,3477.3,19.8624892]
[1735094290584,0.01,3477.4,3477.3,16.7014972]
[1735094294220,0.01,3477.4,3477.3,19.7906972]
[1735094294522,0.7711,3478.8,3478.0,2.8752]
[1735094294682,0.7711,3478.8,3478.1,3.28752]
[1735094295126,0.7711,3478.8,3478.1,3.16264]
[1735094295980,0.7711,3478.8,3478.3,3.0]
[1735094296186,0.7711,3478.8,3478.6,2.75530201]
[1735094296514,0.7711,3479.1,3478.7,3.0]
[1735094296826,0.7711,3479.1,3478.8,0.5755302]
[1735094300849,0.7711,3479.1,3478.8,0.5726602]
[1735094301147,0.7577,3479.6,3478.9,2.87442]
[1735094302138,0.7577,3479.6,3478.8,3.5726602]
[1735094302444,0.7577,3479.6,3478.8,0.5726602]
[1735094302640,0.7577,3479.6,3478.9,0.34472802]
[1735094302938,0.7577,3479.6,3478.6,3.0]
[1735094303127,0.7577,3479.6,3478.4,3.0]
[1735094303345,0.7577,3479.6,3478.8,3.0]
[1735094303851,0.7577,3479.6,3478.7,2.87463]
[1735094303852,0.7577,3479.6,3479.0,2.87435]
[1735094306999,0.7577,3479.6,3478.8,9.6745]
[1735094307142,0.7577,3479.6,3478.9,6.39628631]
[1735094307625,0.7577,3479.6,3479.1,2.87427]
[1735094309853,0.7577,3479.6,3478.9,18.12073631]
[1735094310443,0.7577,3479.6,3479.0,2.87433]
[1735094311050,0.7577,3479.6,3479.1,2.8743]
[1735094311343,0.7577,3479.6,3479.2,1.81205863]
[1735094313973,0.7577,3479.6,3479.2,4.81205863]
[1735094314158,0.7577,3479.6,3479.2,1.81205863]
[1735094314889,0.7577,3479.6,3478.9,8.85]
[1735094315067,2.87394,3479.6,3479.0,3.0]
[1735094315270,0.8174,3479.5,3479.0,3.0]
[1735094315468,0.8174,3479.5,3478.4,8.85]
[1735094315469,0.8174,3479.4,3478.4,8.85]
[1735094316175,0.8174,3479.4,3478.6,0.56580105]
[1735094316347,0.8174,3479.4,3478.7,0.9415801]
[1735094317596,0.8174,3479.4,3478.6,0.56580105]
[1735094317801,0.7888,3479.3,3478.5,3.0]
[1735094318093,0.7888,3479.1,3478.5,3.0]
[1735094318293,0.7888,3478.8,3478.0,0.57097974]
[1735094318504,0.7888,3478.8,3478.0,3.22861304]
[1735094318851,0.7888,3478.8,3478.0,2.6576333]
[1735094319054,0.7888,3478.8,3477.9,11.72528]
[1735094319454,0.7888,3478.8,3477.6,8.85]
[1735094319770,0.7888,3478.7,3477.6,11.72547]
[1735094320483,0.7888,3478.6,3477.6,11.72547]
[1735094320650,0.7888,3478.6,3477.7,3.0]
[1735094320857,0.7888,3478.6,3477.7,4.8301872]
[1735094321201,0.7888,3478.6,3477.7,7.7056372]
[1735094321381,0.7888,3478.6,3477.7,8.27897613]
[1735094323187,0.7888,3478.6,3477.7,5.40352613]
[1735094324375,2.87487,3478.5,3477.7,3.0]
[1735094324568,2.8748,3478.5,3477.6,8.85]
[1735094324898,0.7888,3478.4,3477.5,3.0]
[1735094325398,2.87451,3478.9,3477.2,2.87585]
[1735094325399,0.7888,3478.2,3477.2,2.87585]
[1735094326227,0.7888,3478.2,3477.7,2.75530201]
[1735094326518,0.7888,3478.2,3478.0,2.87516]
[1735094326725,4.66282215,3479.5,3477.8,5.87537]
[1735094326726,0.7965,3478.9,3477.8,5.87537]
[1735094326878,1.1925281,3478.8,3477.8,5.87537]
[1735094327091,0.7965,3478.7,3477.8,5.87537]
[1735094327307,0.7965,3478.7,3477.9,0.8630672]
[1735094328107,0.7965,3478.7,3477.9,3.7382872]
[1735094328312,0.7965,3478.7,3478.0,0.57365866]
[1735094328994,2.87474,3478.6,3477.7,3.0]
[1735094329200,0.7965,3478.5,3477.5,0.55]
[1735094329410,0.7965,3478.5,3477.6,1.15440902]
[1735094330124,0.7965,3478.5,3477.7,0.57693248]
[1735094332459,0.7648,3478.1,3477.3,36.172585]
[1735094332743,0.7648,3477.8,3477.3,1.172585]
[1735094332950,0.7648,3477.8,3477.1,1.19051315]
[1735094333686,0.7648,3477.8,3477.0,3.44204456]
[1735094334180,0.7648,3477.8,3477.1,3.0]
[1735094334477,0.7648,3477.8,3477.1,2.87594]
[1735094334767,0.7648,3477.8,3477.2,1.60829946]
[1735094336278,0.7648,3477.8,3477.2,7.23947147]
[1735094336636,0.7648,3477.8,3477.3,35.0]
[1735094336833,0.7648,3477.8,3477.2,7.23947147]
[1735094337244,0.7648,3477.8,3477.2,42.23947147]
[1735094337443,0.7648,3477.8,3477.3,2.84628631]
[1735094338409,0.7648,3477.8,3477.2,1.60829946]
[1735094340489,3.64019,3477.8,3477.2,1.60829946]
[1735094340639,0.7648,3477.8,3477.2,1.60829946]
[1735094342417,2.87509,3478.2,3477.1,8.85]
[1735094342685,0.7648,3477.7,3477.0,0.56605456]
[1735094342980,2.87564,3477.5,3477.0,0.56605456]
[1735094343154,0.7648,3477.4,3477.0,0.56605456]
[1735094343354,2.87579,3477.3,3477.0,0.56605456]
[1735094343564,2.8757,3477.5,3477.0,0.56605456]
[1735094343743,2.8758,3477.3,3477.0,0.56605456]
[1735094343944,0.7648,3477.2,3477.0,0.56605456]
[1735094344345,3.64069,3477.2,3476.4,8.85]
[1735094344665,0.7648,3477.1,3476.4,10.101769]
[1735094345032,3.64084,3477.0,3476.4,8.85]
[1735094345959,0.55,3477.5,3475.7,8.85]
[1735094346242,2.87637,3476.7,3475.7,8.85]
[1735094346446,0.7599,3476.6,3475.8,0.02876695]
[1735094346734,0.7599,3476.6,3475.7,8.85]
[1735094346939,0.7599,3476.6,3475.8,1.56730052]
[1735094347143,0.7599,3476.4,3475.7,8.85]
[1735094347280,0.7599,3476.4,3475.8,0.5761729]
[1735094347481,0.7599,3476.4,3475.4,35.791]
[1735094347717,2.87643,3476.6,3475.4,35.0]
[1735094347926,0.7599,3476.5,3475.4,2.84628631]
[1735094348098,0.7599,3476.5,3475.4,2.87735]
[1735094348450,3.6364,3476.5,3475.4,2.87735]
[1735094348999,2.87604,3477.0,3475.4,3.0]
[1735094349183,0.7599,3476.2,3475.3,0.57386982]
[1735094349644,3.63661,3476.2,3475.3,0.57386982]
[1735094349949,0.7599,3476.2,3475.4,1.53014598]
[1735094350284,3.63661,3476.2,3475.4,1.53014598]
[1735094351627,0.7599,3476.2,3475.4,1.53014598]
[1735094351798,0.7599,3476.2,3475.4,4.53014598]
[1735094351998,0.7599,3476.2,3475.5,1.68314458]
[1735094353732,3.63662,3476.2,3475.5,1.68314458]
[1735094354231,0.7599,3476.1,3475.3,3.57386982]
[1735094354428,2.87672,3476.2,3474.7,2.87789]
[1735094354429,2.87709,3475.8,3474.9,3.0]
[1735094354634,0.7599,3475.3,3474.4,11.74234214]
[1735094354858,0.7599,3475.3,3474.4,13.32618057]
[1735094354991,0.7599,3475.3,3474.4,13.31201843]
[1735094355694,0.7599,3475.3,3474.4,10.43383843]
[1735094356186,0.7599,3475.3,3474.4,13.31198843]
[1735094357028,0.7599,3475.3,3474.5,0.8544767]
[1735094357228,0.7599,3475.3,3474.6,1.48889962]
[1735094357399,0.7599,3475.3,3474.7,0.02877671]
[1735094357597,0.7599,3475.3,3474.8,0.02877408]
[1735094357909,0.7599,3475.3,3474.7,2.87786]
[1735094359403,0.7599,3475.3,3474.6,10.33889962]
[1735094359602,3.63737,3475.3,3474.6,10.33889962]
[1735094360352,3.63737,3475.3,3474.6,8.85]
[1735094360556,2.87754,3475.2,3474.6,8.85]
[1735094360853,0.8271,3475.1,3474.3,0.72253105]
[1735094361048,0.8271,3475.1,3474.3,3.60078105]
[1735094361548,0.8271,3475.1,3474.3,4.41378105]
[1735094361695,0.8271,3475.1,3474.4,1.01690831]
[1735094370972,3.70471,3475.1,3474.4,1.01690831]
[1735094371458,0.8271,3475.1,3474.4,1.01690831]
[1735094374871,3.70471,3475.1,3474.4,1.01690831]
[1735094375023,0.8234,3475.0,3474.3,0.72253105]
[1735094375470,0.8234,3475.0,3474.3,0.15022698]
[1735094375765,0.8132,3474.6,3473.8,8.85]
[1735094375933,0.8132,3474.6,3473.8,9.00028921]
[1735094376140,0.8132,3474.5,3474.0,0.57740286]
[1735094376768,0.8132,3474.2,3473.8,0.15028921]
[1735094377067,0.8132,3474.0,3473.2,8.85]
[1735094377264,0.8132,3474.0,3473.3,0.96083]
[1735094377940,0.8132,3474.0,3473.3,3.96083]
[1735094378268,0.8132,3474.0,3472.8,2.89681698]
[1735094378269,0.8132,3473.6,3473.5,0.56720425]
[1735094379349,3.69205,3473.6,3473.5,0.56720425]
[1735094379895,0.8132,3473.6,3473.5,0.56720425]
[1735094381367,0.8132,3473.6,3472.9,2.8794]
[1735094381576,0.8132,3473.6,3473.0,1.21676381]
[1735094381901,0.8132,3473.6,3473.0,10.03797346]
[1735094382201,0.8132,3473.6,3473.1,35.0]
[1735094382501,0.8132,3473.6,3473.3,2.87908]
[1735094383356,0.8132,3473.6,3473.1,35.0]
[1735094383557,0.8132,3473.6,3473.2,5.72546631]
[1735094383958,0.8132,3473.6,3473.0,10.03797346]
[1735094384283,0.8132,3473.6,3473.0,8.85]
[1735094384803,0.8132,3473.6,3472.8,0.15033462]
[1735094385160,0.8132,3473.6,3473.0,0.58199593]
[1735094387586,0.8132,3473.6,3473.1,0.02879054]
[1735094387788,0.8132,3473.6,3473.3,2.87909]
[1735094387986,0.8008,3474.4,3473.4,3.166919]
[1735094388186,3.679,3474.4,3473.4,3.166919]
[1735094388863,3.679,3474.4,3473.4,3.939619]
[1735094390872,3.679,3474.4,3473.5,0.02878682]
[1735094391375,3.679,3474.4,3473.4,3.939619]
[1735094392078,2.8783,3474.3,3473.4,0.287909]
[1735094392279,0.7772,3474.2,3473.4,0.287909]
[1735094392480,0.7772,3474.2,3473.2,2.87918]
[1735094395332,0.7772,3474.2,3473.1,8.85]
[1735094395540,0.7772,3473.9,3473.0,3.46133593]
[1735094395700,0.7772,3473.9,3473.1,2.78409011]
[1735094395893,0.7772,3473.9,3473.5,2.87886]
[1735094396093,2.87805,3474.6,3473.6,0.31667236]
[1735094396094,0.7772,3474.5,3473.6,0.31667236]
[1735094396695,0.7772,3474.5,3473.6,0.287886]
[1735094397336,0.7772,3474.5,3473.7,0.02878446]
[1735094397547,0.7772,3474.5,3473.6,0.287886]
[1735094397843,0.7772,3474.4,3473.6,0.287886]
[1735094398048,0.7772,3474.4,3473.4,11.729]
[1735094399970,0.7772,3474.4,3473.4,2.879]
[1735094400273,3.65539,3474.4,3473.4,2.879]
[1735094400608,3.65539,3474.4,3473.3,8.85]
[1735094400810,0.7772,3474.3,3473.3,8.85]
[1735094401046,0.7772,3474.3,3473.4,1.5315562]
[1735094402470,0.7772,3474.8,3474.0,2.87844]
[1735094402623,0.7772,3474.8,3473.8,3.70972]
[1735094403072,3.65507,3474.8,3473.8,2.87862]
[1735094403631,0.7772,3474.7,3473.7,3.57916214]
[1735094403831,0.7772,3474.3,3473.7,0.57916214]
[1735094404145,0.7772,3474.3,3473.7,1.96313397]
[1735094407398,0.7772,3474.3,3473.7,4.84188397]
[1735094408965,0.7772,3474.3,3473.7,13.69188397]
[1735094409769,0.7772,3474.3,3473.7,10.81313397]
[1735094409950,0.7772,3474.3,3473.9,2.8786]
[1735094410150,0.7772,3474.3,3473.8,0.78338193]
[1735094410151,0.7772,3474.3,3474.0,1.47629364]
[1735094410400,0.7772,3474.3,3474.0,1.44751159]
[1735094411152,0.7792,3475.0,3474.5,2.8781]
[1735094411370,1.1925281,3475.1,3474.7,0.7546]
[1735094411596,1.1925281,3475.1,3475.0,2.87769]
[1735094411785,1.1925281,3475.1,3474.8,2.87784]
[1735094411970,1.1925281,3475.1,3474.8,3.528891]
[1735094412571,1.1925281,3475.1,3475.0,2.87769]
[1735094412808,3.16425621,3475.5,3475.0,2.87769]
[1735094412809,0.7792,3475.5,3475.0,2.87769]
[1735094415001,0.7792,3475.5,3475.0,3.44939192]
[1735094415527,0.7792,3475.5,3475.0,0.57170192]
[1735094417224,0.7792,3475.5,3474.9,8.85]
[1735094417601,3.65651,3475.5,3474.9,8.85]
[1735094417816,3.65651,3475.5,3474.8,0.56857757]
[1735094418218,0.7792,3475.5,3474.8,0.56857757]
[1735094418397,0.7792,3475.5,3474.9,0.94185776]
[1735094418819,0.7792,3475.5,3475.1,0.08243]
[1735094426918,0.7802,3475.3,3475.1,0.08243]
[1735094429296,2.87705,3475.8,3475.1,0.08243]
[1735094429500,0.7802,3475.7,3475.1,0.08243]
[1735094436748,3.65734,3475.7,3475.1,0.08243]
[1735094436950,2.87722,3475.6,3475.1,0.08243]
[1735094437108,0.815,3475.5,3475.1,0.08243]
[1735094438805,3.69228,3475.5,3475.1,0.08243]
[1735094439047,0.815,3475.5,3475.1,0.08243]
[1735094439449,1.1925281,3476.0,3475.3,3.7726]
[1735094439749,1.1925281,3476.0,3475.8,2.87696]
[1735094439950,1.1925281,3476.0,3475.9,3.64955]
[1735094440379,0.62015687,3476.0,3475.9,4.19955]
[1735094440650,1.20337035,3476.4,3476.3,2.87662]
[1735094440870,1.20337035,3476.4,3476.2,0.7726]
[1735094441166,1.20337035,3476.4,3476.3,0.664938]
[1735094441564,1.20337035,3476.4,3475.9,11.60530201]
[1735094441565,1.20337035,3476.4,3475.9,0.7726]
[1735094442282,0.815,3476.9,3475.9,0.7726]
[1735094442926,2.8762,3476.8,3475.9,0.7726]
[1735094444193,2.8762,3476.8,3475.9,1.34475419]
[1735094444380,2.87632,3476.7,3475.9,0.57215419]
[1735094444575,0.815,3476.6,3475.9,1.89162961]
[1735094444823,0.815,3476.6,3475.9,0.57215419]
[1735094445326,3.69137,3476.6,3475.9,0.57215419]
[1735094445520,3.69137,3476.6,3475.6,0.7726]
[1735094446027,3.69137,3476.6,3475.7,0.02876752]
[1735094446325,3.69137,3476.6,3475.6,0.7726]
[1735094446626,3.69137,3476.6,3475.7,1.59190825]
[1735094447398,3.69137,3476.6,3475.7,1.62067577]
[1735094449227,0.815,3476.6,3475.8,0.56697111]
[1735094450108,3.69138,3476.6,3475.8,0.56697111]
[1735094451830,0.815,3476.6,3475.8,0.56697111]
[1735094452029,3.69108,3476.9,3476.0,0.795]
[1735094453662,2.87621,3476.8,3476.0,0.795]
[1735094453841,0.8149,3476.9,3476.0,0.795]
[1735094454162,2.8763,3476.7,3476.0,0.795]
[1735094454517,0.8149,3476.9,3476.0,0.795]
[1735094454712,3.6911,3476.9,3476.1,0.28278291]
[1735094455315,0.8149,3476.9,3476.1,0.28278291]
[1735094455514,0.8149,3476.9,3475.9,1.46585794]
[1735094455718,3.0,3477.2,3475.5,8.85]
[1735094455719,0.8149,3476.1,3475.5,8.85]
[1735094456535,3.69176,3476.1,3475.5,8.85]
[1735094458679,0.8149,3476.1,3475.5,8.85]
[1735094459988,0.8149,3476.1,3475.4,0.795]
[1735094460180,2.87663,3476.3,3475.4,0.795]
[1735094460476,3.69144,3476.4,3475.5,1.32156155]
[1735094461485,0.8149,3475.7,3475.1,1.27294315]
[1735094461775,3.69179,3476.0,3475.1,1.27294315]
[1735094462349,0.8149,3476.0,3475.1,1.27294315]